[Event "World Team-ch Women 2019"]
[Site "Astana"]
[Date "2019.03.05"]
[Round "1.2"]
[White "Wafa, Shrook"]
[Black "Sargsyan, Anna M."]
[Result "0-1"]
[ECO "B18"]
[WhiteElo "2166"]
[BlackElo "2340"]
[Annotator "NA"]
[PlyCount "128"]
[EventDate "2019.02.05"]
[EventType "team-tourn"]
[EventCountry "KAZ"]
[SourceTitle "playchess.com"]
[Source "ChessBase"]
[SourceQuality "1"]
[WhiteTeam "Egypt"]
[BlackTeam "Armenia"]
[WhiteTeamCountry "EGY"]
[BlackTeamCountry "ARM"]
[TimeControl "40/5400+30:1800+30"]

1. e4 {[%emt 0:00:00]} c6 {[%emt 0:00:00]} 2. d4 {[%emt 0:00:00]} d5 {[%emt 0:00:00]} 3. Nc3 {[%emt 0:00:00]} dxe4 {[%emt 0:00:00]} 4. Nxe4 {[%emt 0:00:05]} Bf5 {[%emt 0:00:04]} 5. Ng3 {[%emt 0:00:13]} Bg6 {[%emt 0:00:06]} 6. Nf3 {[%emt 0:00:16]} e6 {[%emt 0:00:10]} 7. Bd3 {[%emt 0:01:04]} Nf6 {[%emt 0:00:43]} 8. h4 {[%emt 0:02:06] B18: Classical Caro-Kann: 4...Bf5 sidelines} (8. O-O Be7 9. Re1 O-O 10. Bxg6 hxg6 11. Qe2 c5 12. dxc5 Bxc5 13. Ne4 Be7 14. Nxf6+ Bxf6 15. c3 Nc6 {0-1 (41) Demchenko,A (2679)-Tari,A (2620) St Petersburg 2018}) 8... Bd6 {[%emt 0:02:47]} 9. h5 {[%emt 0:01:59]} Bxd3 {[%emt 0:00:24]} 10. Qxd3 {[%emt 0:00:07]} h6 $146 {[%emt 0:01:50]} ({Predecessor:} 10... Bxg3 11. fxg3 h6 12. Bd2 Qd5 13. Rh4 Nbd7 14. c4 Qd6 15. O-O-O b5 {0-1 (43) Passoni,C (2200)-Khenkin,I (2550) Porto San Giorgio 1997}) 11. Ne4 {[%emt 0:02:34]} Nxe4 {[%emt 0:00:20]} 12. Qxe4 {[%emt 0:00:08]} Nd7 {[%emt 0:00:05]} 13. Bd2 {[%emt 0:02:54]} Qb6 {[%emt 0:04:00]} 14. O-O-O {[%emt 0:13:09]} O-O-O {[%emt 0:01:50]} 15. Kb1 {[%emt 0:05:48]} Qb5 {[%emt 0:12:55]} 16. Qe3 {[%emt 0:14:27]} Nf6 {[%emt 0:04:19]} 17. Ne5 {[%emt 0:02:02]} Nd5 {[%emt 0:25:52]} 18. Qf3 {[%emt 0:08:24]} Bxe5 {[%emt 0:00:40]} 19. dxe5 {[%emt 0:00:22]} Rd7 {[%emt 0:01:44]} 20. Qg4 {[%emt 0:16:54]} Nb6 {[%emt 0:01:45]} 21. Bc3 {[%emt 0:10:51]} Na4 {[%emt 0:10:56]} 22. Rxd7 {[%emt 0:05:03]} Nxc3+ {[%emt 0:03:25]} 23. Ka1 {[%emt 0:00:39]} Kxd7 {[%emt 0:03:51]} 24. Qxg7 {[%emt 0:01:01]} Na4 {[%emt 0:02:02]} 25. b3 {[%emt 0:02:59]} Qd5 {[%emt 0:05:55]} 26. bxa4 {[%emt 0:02:05]} Rd8 {[%emt 0:01:42]} 27. Qxf7+ {[%emt 0:01:31]} Kc8 {[%emt 0:00:07]} 28. Qf4 {[%emt 0:01:24]} Qc5 {[%emt 0:00:15]} 29. Kb1 {[%emt 0:01:42]} Rd4 {[%emt 0:02:23]} 30. Qe3 {[%emt 0:00:40]} Qd5 {[%emt 0:02:16]} 31. Re1 {[%emt 0:01:58]} Rb4+ {[%emt 0:02:07]} 32. Ka1 {[%emt 0:00:38]} Rxa4 {[%emt 0:00:08]} 33. Qb3 {[%emt 0:00:21]} Rc4 {[%emt 0:00:10]} 34. Qd3 {[%emt 0:00:50]} Qc5 {[%emt 0:02:20]} 35. Qd6 {[%emt 0:00:59]} Qxd6 {[%emt 0:01:36]} 36. exd6 {[%emt 0:00:04]} Kd7 {[%emt 0:00:04]} 37. Kb2 {[%emt 0:00:34]} Rb4+ {[%emt 0:03:41]} 38. Kc3 {[%emt 0:00:35]} Rh4 {[%emt 0:00:05]} 39. f3 {[%emt 0:01:06]} Rxh5 {[%emt 0:00:08]} 40. g4 {[%emt 0:00:00]} Rh3 {[%emt 0:00:00]} 41. Re3 {[%emt 0:00:41]} Kxd6 {[%emt 0:01:09]} 42. Kd4 {[%emt 0:00:38]} Rh2 {[%emt 0:00:41]} 43. Rc3 {[%emt 0:00:22]} b5 {[%emt 0:03:12]} 44. Ke4 {[%emt 0:00:56]} b4 {[%emt 0:00:58]} 45. Rd3+ {[%emt 0:03:16]} Kc5 {[%emt 0:01:58]} 46. Rd7 {[%emt 0:01:07]} a5 {[%emt 0:00:09]} 47. Kd3 {[%emt 0:00:15]} Rf2 {[%emt 0:01:55]} 48. Rf7 {[%emt 0:01:31]} Kd6 {[%emt 0:00:06]} 49. Rf6 {[%emt 0:01:56]} c5 {[%emt 0:00:43]} 50. f4 {[%emt 0:02:35]} Ke7 {[%emt 0:04:06]} 51. Rxh6 {[%emt 0:00:37]} Rxf4 {[%emt 0:00:07]} 52. Rh7+ {[%emt 0:00:38]} Kd6 {[%emt 0:00:06]} 53. Ra7 {[%emt 0:01:02]} Rxg4 {[%emt 0:00:49]} 54. Rxa5 {[%emt 0:00:41]} Kd5 {[%emt 0:01:21]} 55. Ra8 {[%emt 0:01:00]} Rg3+ {[%emt 0:00:19]} 56. Kd2 {[%emt 0:00:22]} Ra3 {[%emt 0:01:45]} 57. Rd8+ {[%emt 0:00:29]} Kc4 {[%emt 0:00:56]} 58. Re8 {[%emt 0:00:49]} Rxa2 $19 {[%emt 0:00:15]} 59. Rxe6 {[%emt 0:00:20]} b3 {[%emt 0:00:15]} 60. Kc1 {[%emt 0:01:53]} Rxc2+ {[%emt 0:00:27]} 61. Kb1 {[%emt 0:00:18]} Rh2 {[%emt 0:00:28]} 62. Re8 {[%emt 0:01:17]} Kb4 {[%emt 0:00:15]} 63. Rg8 {[%emt 0:00:42]} c4 {[%emt 0:00:08]} 64. Rf8 {[%emt 0:00:49]} Rh1+ {[%emt 0:01:39]} 0-1

[Event "World Team-ch Women 2019"]
[Site "Astana"]
[Date "2019.03.05"]
[Round "1.3"]
[White "Gevorgyan, Maria"]
[Black "Moaataz, Ayah"]
[Result "1-0"]
[ECO "B13"]
[WhiteElo "2264"]
[BlackElo "2036"]
[Annotator "NA"]
[PlyCount "106"]
[EventDate "2019.02.05"]
[EventType "team-tourn"]
[EventCountry "KAZ"]
[SourceTitle "playchess.com"]
[Source "ChessBase"]
[SourceQuality "1"]
[WhiteTeam "Armenia"]
[BlackTeam "Egypt"]
[WhiteTeamCountry "ARM"]
[BlackTeamCountry "EGY"]
[TimeControl "40/5400+30:1800+30"]

1. e4 {[%emt 0:00:00]} c6 {[%emt 0:00:00]} 2. d4 {[%emt 0:00:00]} d5 {[%emt 0:00:00]} 3. exd5 {[%emt 0:00:00]} cxd5 {[%emt 0:00:00]} 4. Bd3 {[%emt 0:00:00]} Nc6 {[%emt 0:00:00]} 5. c3 {[%emt 0:00:00]} Qc7 {[%emt 0:00:06]} 6. Qb3 {[%emt 0:10:31]} Nf6 {[%emt 0:00:37] B13: Caro-Kann: Exchange Variation and Panov-Botvinnik Attack} 7. Bg5 {[%emt 0:02:14]} e6 {[%emt 0:02:09]} 8. Nd2 {[%emt 0:02:38]} Bd6 {[%emt 0:00:31]} 9. Ngf3 {[%emt 0:03:06]} a6 $146 {[%emt 0:03:13]} ({Predecessor:} 9... Nh5 10. O-O-O Nf4 11. Bxf4 Bxf4 12. g3 Bd6 {½-½ (12) Cerveny,P (2403)-Hermansson,E (2472) Marianske Lazne 2008}) 10. O-O {[%emt 0:03:27]} h6 {[%emt 0:07:33]} 11. Bh4 {[%emt 0:01:27]} Nh5 {[%emt 0:02:18]} 12. Bg3 {[%emt 0:08:35]} Nf4 {[%emt 0:08:50]} 13. Bxf4 {[%emt 0:01:23]} Bxf4 {[%emt 0:00:10]} 14. Rfe1 {[%emt 0:00:56]} O-O {[%emt 0:00:53]} 15. Qd1 {[%emt 0:03:12]} e5 {[%emt 0:11:48]} 16. Nxe5 {[%emt 0:05:19]} Nxe5 {[%emt 0:00:20]} 17. dxe5 {[%emt 0:00:06]} Bxe5 {[%emt 0:00:15]} 18. Qh5 {[%emt 0:04:21]} Bf4 {[%emt 0:22:25]} 19. Nf3 {[%emt 0:01:47]} Qd8 {[%emt 0:05:20]} 20. Nd4 {[%emt 0:04:31]} Qg5 {[%emt 0:04:57]} 21. Qxg5 {[%emt 0:01:14]} Bxg5 {[%emt 0:00:05]} 22. Re5 {[%emt 0:01:23]} Rd8 {[%emt 0:00:13]} 23. Rae1 {[%emt 0:00:11]} Kf8 {[%emt 0:00:13]} 24. Nb3 {[%emt 0:06:25]} Bf6 {[%emt 0:01:10]} 25. R5e3 {[%emt 0:01:48]} b6 {[%emt 0:01:23]} 26. Be2 {[%emt 0:00:17]} Bg5 {[%emt 0:05:42]} 27. Rd3 {[%emt 0:00:58]} Bf5 {[%emt 0:00:56]} 28. Rd4 {[%emt 0:00:06]} Be4 {[%emt 0:07:36]} 29. g3 {[%emt 0:01:47]} Bf6 {[%emt 0:01:33]} 30. Rd2 {[%emt 0:00:09]} Bg5 {[%emt 0:01:16]} 31. f4 {[%emt 0:01:19]} Be7 {[%emt 0:00:50]} 32. Red1 {[%emt 0:03:54]} Ke8 {[%emt 0:02:08]} 33. Nd4 {[%emt 0:07:03]} Bc5 {[%emt 0:02:18]} 34. Kf1 {[%emt 0:00:06]} b5 {[%emt 0:06:47]} 35. a3 {[%emt 0:04:38]} Bxd4 {[%emt 0:01:19]} 36. Rxd4 {[%emt 0:00:07]} f5 {[%emt 0:00:15]} 37. R1d2 {[%emt 0:01:45]} Rab8 {[%emt 0:01:14]} 38. h4 {[%emt 0:03:38]} Ke7 {[%emt 0:00:24]} 39. Kf2 {[%emt 0:01:20]} g5 {[%emt 0:00:53]} 40. fxg5 {[%emt 0:00:00]} hxg5 {[%emt 0:00:00]} 41. hxg5 {[%emt 0:07:52]} Rh8 {[%emt 0:05:35]} 42. Bf3 {[%emt 0:02:26]} Rh2+ {[%emt 0:08:42]} 43. Ke3 {[%emt 0:00:13]} Rbh8 {[%emt 0:07:14]} 44. Bxe4 {[%emt 0:00:27]} Rxd2 {[%emt 0:00:08]} 45. Rxd2 {[%emt 0:00:06]} dxe4 {[%emt 0:00:09]} 46. Kf4 {[%emt 0:09:23]} Ke6 {[%emt 0:01:35]} 47. g6 {[%emt 0:06:57]} Rg8 {[%emt 0:02:36]} 48. Kg5 {[%emt 0:00:08]} Ke5 {[%emt 0:00:55]} 49. Rf2 {[%emt 0:06:02]} e3 $11 {[%emt 0:02:59]} 50. Rxf5+ {[%emt 0:00:05]} Kd6 {[%emt 0:02:31]} 51. Rf1 {[%emt 0:00:35]} Ke5 {[%emt 0:02:14]} 52. Rf7 {[%emt 0:08:37]} Ke6 {[%emt 0:00:25]} 53. Rf3 {[%emt 0:00:05]} Kd5 1-0

[Event "World Team-ch Women 2019"]
[Site "Astana"]
[Date "2019.03.05"]
[Round "1.10"]
[White "Arabdize, Meri"]
[Black "Soumya, Swaminathan"]
[Result "0-1"]
[ECO "D85"]
[WhiteElo "2392"]
[BlackElo "2401"]
[Annotator "NA"]
[PlyCount "112"]
[EventDate "2019.02.05"]
[EventType "team-tourn"]
[EventCountry "KAZ"]
[SourceTitle "playchess.com"]
[Source "ChessBase"]
[SourceQuality "1"]
[WhiteTeam "Georgia"]
[BlackTeam "India"]
[WhiteTeamCountry "GEO"]
[BlackTeamCountry "IND"]
[TimeControl "40/5400+30:1800+30"]

1. Nf3 {[%emt 0:00:00]} Nf6 {[%emt 0:00:48]} 2. c4 {[%emt 0:00:00]} g6 {[%emt 0:00:28]} 3. Nc3 {[%emt 0:00:04]} d5 {[%emt 0:00:37]} 4. cxd5 {[%emt 0:00:19]} Nxd5 {[%emt 0:00:02]} 5. Qb3 {[%emt 0:00:13]} Nb6 {[%emt 0:00:11]} 6. d4 {[%emt 0:00:08]} Be6 {[%emt 0:02:44] D85: Exchange Grünfeld: Unusual White 7th moves and lines with 7 Nf3} (6... Bg7 7. Bf4 Be6 8. Qa3 O-O 9. e3 N8d7 10. Rd1 c6 11. Ng5 Bf5 12. e4 Bg4 13. Be2 Bxe2 14. Nxe2 Qe8 {1-0 (32) Duda,J (2739)-Ivanchuk,V (2710) Batumi 2018}) 7. Qa3 {[%emt 0:06:43]} Bg4 {[%emt 0:12:42]} 8. e3 $146 {[%emt 0:31:07]} ({Predecessor:} 8. Bg5 Nc6 9. e3 Bxf3 10. gxf3 e5 11. Bxd8 Bxa3 12. Bf6 Bxb2 13. Nb5 Bxa1 14. Bxh8 {0-1 (50) Zygouris,H (2220)-Anagnostopoulos,K (2097) Vrachati 2013}) 8... Bxf3 {[%emt 0:11:25]} 9. gxf3 {[%emt 0:00:09]} e5 {[%emt 0:02:09]} 10. Qa5 $1 {[%emt 0:01:08]} Bg7 {[%emt 0:15:52]} 11. dxe5 {[%emt 0:02:34]} Nc6 {[%emt 0:00:25]} 12. Bb5 {[%emt 0:01:31]} Qd7 {[%emt 0:00:39]} 13. Bxc6 {[%emt 0:04:18]} bxc6 {[%emt 0:03:39]} 14. Qc5 {[%emt 0:20:04]} O-O-O {[%emt 0:02:06]} 15. O-O {[%emt 0:02:08]} Rhe8 {[%emt 0:04:27]} 16. Ne4 {[%emt 0:02:26]} Rxe5 {[%emt 0:02:58]} 17. Qc2 {[%emt 0:00:59]} g5 {[%emt 0:21:29]} 18. a4 {[%emt 0:05:03]} a5 {[%emt 0:04:55]} 19. Rb1 {[%emt 0:03:11]} Qh3 {[%emt 0:00:46]} 20. Ng3 {[%emt 0:04:06]} Rd6 {[%emt 0:04:53]} 21. b4 {[%emt 0:06:38]} Rh6 {[%emt 0:00:20]} 22. Rd1 {[%emt 0:00:20]} Bf8 {[%emt 0:03:20]} 23. bxa5 {[%emt 0:01:39]} Rxa5 {[%emt 0:01:00]} 24. Bd2 {[%emt 0:01:32]} Rc5 {[%emt 0:00:46]} 25. Qe4 {[%emt 0:04:21]} Qxh2+ {[%emt 0:00:05]} 26. Kf1 {[%emt 0:00:03]} Re6 {[%emt 0:00:52]} 27. Qg4 {[%emt 0:01:24]} Be7 {[%emt 0:02:59]} 28. a5 {[%emt 0:01:15]} Nc4 {[%emt 0:00:44]} 29. a6 {[%emt 0:00:22]} Nxd2+ {[%emt 0:00:09]} 30. Rxd2 {[%emt 0:00:02]} Ra5 {[%emt 0:00:09]} 31. Qd4 {[%emt 0:01:09]} Qh3+ {[%emt 0:00:39]} 32. Ke2 {[%emt 0:00:12]} Rd6 {[%emt 0:00:21]} 33. Qh8+ {[%emt 0:00:42]} Kd7 {[%emt 0:00:31]} 34. Rbd1 {[%emt 0:00:36]} Qe6 {[%emt 0:00:49]} 35. Qc3 {[%emt 0:00:32]} Ra2 {[%emt 0:00:52]} 36. Ne4 {[%emt 0:00:15]} Rdxd2+ {[%emt 0:00:15]} 37. Rxd2+ {[%emt 0:00:02]} Rxd2+ {[%emt 0:00:15]} 38. Qxd2+ {[%emt 0:00:03]} Kc8 {[%emt 0:00:17]} 39. Qc2 {[%emt 0:01:33]} Qd5 {[%emt 0:00:46]} 40. Ng3 {[%emt 0:00:00]} Qb5+ {[%emt 0:00:00]} 41. Kd1 {[%emt 0:06:28]} h6 {[%emt 0:18:27]} 42. Qe4 {[%emt 0:13:39]} Qd5+ {[%emt 0:00:09]} 43. Ke2 {[%emt 0:00:51] [#]} Qxe4 $19 {[%emt 0:06:56]} 44. fxe4 {[%emt 0:00:02]} c5 {[%emt 0:00:53]} 45. Kd3 {[%emt 0:11:01]} Kb8 {[%emt 0:00:59]} 46. Kc4 {[%emt 0:00:24]} c6 {[%emt 0:01:46]} 47. Nf5 {[%emt 0:01:12]} Bf8 {[%emt 0:00:06]} 48. e5 {[%emt 0:00:13]} h5 {[%emt 0:00:56]} 49. Nd6 {[%emt 0:01:06]} h4 {[%emt 0:03:06]} 50. Kxc5 {[%emt 0:00:41]} h3 {[%emt 0:01:23]} 51. Kb6 {[%emt 0:00:20]} h2 {[%emt 0:00:19]} 52. Ne8 {[%emt 0:00:40]} Bc5+ {[%emt 0:00:08]} 53. Kxc5 {[%emt 0:00:27]} h1=Q {[%emt 0:00:06]} 54. Kb6 {[%emt 0:00:14]} Qb1+ {[%emt 0:00:06]} 55. Kxc6 {[%emt 0:00:25]} Qc2+ {[%emt 0:00:30]} 56. Kb6 {[%emt 0:00:20]} Qb3+ {[%emt 0:00:09]} 0-1